fUST/lending_fUST_20240119
["ID","MTS","AMOUNT","RATE_DAILY","PERIOD"]
[312116955,1705642929569,-607.13204194,0.00022322,2]
[312116956,1705642929589,-154.86062544,0.00022322,2]
[312116957,1705642929609,-3971.58661394,0.00022322,7]
[312116958,1705642929631,-246.07285378,0.00022322,2]
[312116959,1705642929656,-4959.16437663,0.00022322,2]
[312116960,1705642929676,-361.30219818,0.00022323,2]
[312116961,1705642929697,-425.69649895,0.00022323,2]
[312116962,1705642929719,-250.0,0.00022324,2]
[312116963,1705642929746,-2707.42562247,0.00022325,5]
[312116964,1705642929770,-19857.05526045,0.00022325,2]
[312116965,1705642929792,-2102.11817883,0.00022325,2]
[312116966,1705642929815,-2033.48363052,0.00022325,2]
[312116967,1705642929836,-165.04572519,0.00022326,2]
[312116968,1705642929856,-4248.66545907,0.00022326,2]
[312116973,1705643134102,-20891.20723106,0.00021213,2]
[312116974,1705643134121,-178.65716453,0.00021213,2]
[312116975,1705643134141,-246.07285378,0.00021214,2]
[312116976,1705643134160,-230.71907883,0.00021214,2]
[312116977,1705643134179,-4811.28224285,0.00021214,2]
[312116978,1705643134198,-3753.13240654,0.00021214,7]
[312116979,1705643141388,-2996.33579383,0.00021212,2]
[312116980,1705643141410,-607.13204194,0.00021213,2]
[312116981,1705643141431,-294.70821043,0.00021213,2]
[312116982,1705643141452,-218.4542074,0.00021214,7]
[312116983,1705643141473,-238.23153817,0.00021215,2]
[312116984,1705643141494,-4959.16437663,0.00021215,2]
[312116985,1705643141517,-24827.9738316,0.00021216,2]
[312116989,1705643245115,-154.86062544,0.00019917,2]
[312116990,1705643245135,-555.04009963,0.00019917,2]
[312116991,1705643245155,-397.4364283,0.00019918,2]
[312116992,1705643245174,-4959.16437663,0.00020148,2]
[312116993,1705643245193,-3484.00738958,0.00020148,2]
[312116994,1705643245212,-165.04572519,0.00020149,2]
[312116995,1705643245231,-230.71907883,0.00020149,2]
[312116996,1705643245251,-2813.43161407,0.00020149,2]
[312116997,1705643245270,-4811.28224285,0.00020149,2]
[312116998,1705643245289,-294.70821043,0.00020149,2]
[312116999,1705643245308,-154.86062544,0.0002015,2]
[312117000,1705643245327,-607.13204194,0.0002015,2]
[312117001,1705643245346,-3971.58661394,0.0002015,7]
[312117002,1705643245365,-2947.15678661,0.0002015,2]
[312117003,1705643245384,-594.84589351,0.00020151,2]
[312117004,1705643245405,-1113.91161195,0.00020151,2]
[312117005,1705643245425,-265.32889701,0.00020151,2]
[312117006,1705643245446,-178.65716453,0.00020151,2]
[312117007,1705643245465,-16854.1901135,0.00020152,2]
[312117008,1705643247088,-1602.24051039,0.00019917,2]
[312117009,1705643247108,-3002.86514695,0.00020152,2]
[312117010,1705643247127,-451.1727057,0.00020212,2]
[312117011,1705643247147,-243.63065264,0.00021211,2]
[312117012,1705643247167,-154.93802479,0.00021211,2]
[312117013,1705643247186,-319.80242304,0.00021212,2]
[312117014,1705643247306,-1763.65822214,0.00021212,2]
[312117015,1705643247337,-330.54422927,0.00021213,2]
[312117016,1705643247362,-6498.95312139,0.00021213,2]
[312117017,1705643247394,-9407.62362134,0.00021213,2]
[312117018,1705643247417,-3062.94640145,0.00021214,2]
[312117019,1705643247439,-904.02532649,0.00021214,2]
[312117020,1705643247461,-154.93802479,0.00021214,2]
[312117021,1705643247483,-72.0261684,0.00021216,2]
[312117022,1705643247506,-248.03705078,0.00021216,2]
[312117023,1705643247528,-3837.22483801,0.00021216,2]
[312117024,1705643247549,-683.87536543,0.00021216,2]
[312117025,1705643247571,-534.8672697,0.00021216,2]
[312117026,1705643247591,-154.86062544,0.00021216,2]
[312117027,1705643247612,-3216.76087832,0.00021216,2]
[312117028,1705643247633,-154.86062544,0.00021216,2]
[312117029,1705643247655,-166.666666,0.00021944,2]
[312117030,1705643247677,-3963.07176261,0.00022,2]
[312117031,1705643247698,-293.7728031,0.00022,4]
[312117032,1705643247719,-540.486509,0.00022186,2]
[312117033,1705643247741,-262.29973777,0.00022323,2]
[312117034,1705643247764,-267.62432128,0.00022323,2]
[312117035,1705643247784,-178.82165208,0.00022324,2]
[312117036,1705643247804,-2043.48556146,0.00022324,2]
[312117037,1705643247825,-155.24772265,0.00022326,2]
[312117038,1705643247846,-1359.76419804,0.00022326,5]
[312117039,1705643247867,-263.86409722,0.0002233,2]
[312117040,1705643247887,-166.666666,0.00022543,2]
[312117041,1705643247911,-166.666666,0.00023141,2]
[312117042,1705643247931,-392.60460187,0.00023325,2]
[312117043,1705643247951,-8757.15684933,0.00023325,2]
[312117044,1705643247971,-200.0,0.00023333,7]
[312117045,1705643247992,-165.900711,0.00023341,2]
[312117046,1705643248012,-166.666666,0.00023739,2]
[312117047,1705643248032,-1831.01691987,0.00024,2]
[312117048,1705643248052,-155.29191634,0.00024333,2]
[312117049,1705643248072,-166.666666,0.00024338,2]
[312117050,1705643248092,-166.666666,0.00024936,2]
[312117051,1705643248113,-522.10423591,0.0002534,5]
[312117052,1705643248133,-280.0,0.00025666,7]
[312117053,1705643248154,-526.41054949,0.00026,2]
[312117054,1705643248175,-420.89705403,0.00027591,2]
[312117055,1705643248196,-500.0,0.00027591,2]
[312117056,1705643248216,-214.25853916,0.00027591,2]
[312117057,1705643248237,-500.0,0.00027591,2]
[312117058,1705643248256,-483.06166875,0.00027591,2]
[312117059,1705643248278,-500.0,0.00027591,2]
[312117060,1705643248298,-500.0,0.00027591,2]
[312117061,1705643248321,-500.0,0.00027591,2]
[312117062,1705643248342,-405.38784566,0.00027591,2]
[312117063,1705643248363,-469.19476294,0.00027591,2]
[312117064,1705643248385,-500.0,0.00027591,2]
[312117065,1705643248407,-318.86530162,0.00027591,2]
[312117066,1705643248427,-499.99999999,0.00027591,2]
[312117067,1705643248448,-180.38445172,0.00027591,2]
[312117068,1705643248469,-6318.52553758,0.00027873,2]
[312117069,1705643248490,-1588.60568926,0.00028153,2]
[312117070,1705643248512,-430.11205204,0.00028153,2]
[312117071,1705643248532,-154.87609912,0.00028153,2]
[312117072,1705643248552,-300.68115955,0.00028153,2]
[312117073,1705643248573,-154.87609912,0.00028153,2]
[312117074,1705643248593,-208.82058628,0.00028153,2]
[312117075,1705643248614,-155.49562102,0.00028153,2]
[312117076,1705643248634,-166.58308548,0.00028153,2]
[312117077,1705643248654,-154.87609912,0.00028153,2]
[312117078,1705643248675,-154.95351395,0.00028153,2]
[312117079,1705643248695,-1741.24664665,0.00028154,2]
[312117080,1705643248716,-434.89647751,0.00028154,2]
[312117081,1705643248738,-155.23850692,0.00028154,2]
[312117082,1705643248761,-688.82444192,0.00028154,2]
[312117083,1705643248782,-2072.61065155,0.00028154,2]
[312117084,1705643248803,-425.69649895,0.00028154,2]
[312117085,1705643248824,-170.72767926,0.00028154,2]
[312117086,1705643248845,-199.81602237,0.00028154,2]
[312117087,1705643248867,-929.3749549,0.00028154,5]
[312117088,1705643248887,-671.70498662,0.00028154,2]
[312117089,1705643248908,-191.53252095,0.00028155,2]
[312117090,1705643248929,-549.47321105,0.00028155,2]
[312117091,1705643248952,-261.2951745,0.00028155,2]
[312117092,1705643248973,-763.13501669,0.00028155,2]
[312117093,1705643248993,-154.8915759,0.00028155,2]
[312117094,1705643249013,-253.97986618,0.00028155,2]
[312117095,1705643249035,-295.02158042,0.00028155,2]
[312117096,1705643249055,-155.20106596,0.00028155,2]
[312117097,1705643249075,-7059.20846776,0.00028155,2]
[312117098,1705643249095,-177.15191446,0.00028155,2]
[312117099,1705643249114,-164.65058158,0.00028155,2]
[312117100,1705643249134,-261.56183592,0.00028155,2]
[312117101,1705643249156,-301.85746635,0.00028156,2]
[312117102,1705643249176,-3748.415527,0.00028156,2]
[312117103,1705643249198,-391.0,0.00028233,15]
[312117104,1705643249218,-375.16526378,0.00028741,2]
[312117105,1705643249238,-2386.4365237,0.00028771,2]
[312117106,1705643249258,-155.0,0.00028995,2]
[312117107,1705643249278,-153.0,0.00029341,2]
[312117108,1705643249297,-153.0,0.00029341,2]
[312117109,1705643249317,-153.0,0.00029341,2]
[312117110,1705643249338,-281.3626415,0.00029478,2]
[312117111,1705643249357,-153.0,0.00029478,2]
[312117112,1705643249378,-225.2624022,0.00029478,2]
[312117113,1705643249399,-306.0,0.00029478,2]
[312117114,1705643249421,-207.4535173,0.00029478,2]
[312117115,1705643249442,-306.5914831,0.00029478,2]
[312117116,1705643249462,-153.0,0.00029478,2]
[312117117,1705643249483,-153.0,0.00029478,2]
[312117118,1705643249503,-153.0,0.00029478,2]
[312117119,1705643249523,-153.0,0.00029478,2]
[312117120,1705643249635,-199.0432224,0.00029478,2]
[312117121,1705643249658,-153.0,0.00029478,2]
[312117122,1705643249681,-153.0,0.00029478,2]
[312117123,1705643249701,-153.0,0.00029478,2]
[312117124,1705643249722,-153.0,0.00029478,2]
[312117125,1705643249751,-153.0,0.00029752,2]
[312117126,1705643249771,-153.0,0.00029752,2]
[312117127,1705643249793,-153.0,0.00029752,2]
[312117128,1705643249814,-152.07628289,0.00029895,2]
[312117129,1705643249835,-305.51246618,0.00029995,2]
[312117130,1705643249854,-261.40839953,0.00029995,2]
[312117131,1705643249874,-620.26741538,0.00029995,2]
[312117132,1705643249894,-354.86718168,0.00029995,2]
[312117133,1705643249916,-130360.81804117,0.00029995,7]
[312117134,1705643250108,-388.82665749,0.00029995,3]
[312117135,1705643323553,-367.27967397,0.00021216,2]
[312117136,1705643323576,-655.38617534,0.00021216,2]
[312117137,1705643323596,-156.05814885,0.00021216,2]
[312117138,1705643323616,-6.27600184,0.00021216,2]
[312117139,1705643345150,-565.47961221,0.00021216,2]
[312117140,1705643345171,-322.0,0.00022487,2]
[312117141,1705643345192,-600.0,0.00023324,2]
[312117142,1705643345220,-600.0,0.00023324,2]
[312117143,1705643345251,-574.50732159,0.00023324,2]
[312117144,1705643355093,-154.86062544,0.00021216,2]
[312117145,1705643355116,-248.03705078,0.00021216,2]
[312117146,1705643355139,-534.8672697,0.00021216,2]
[312117147,1705643355162,-78.1371927,0.00023324,2]
[312117148,1705643355184,-272.35947024,0.00026994,2]
[312117149,1705643355207,-2972.99283788,0.00029391,2]
[312117150,1705643372113,-248.03705078,0.00021216,2]
[312117151,1705643372135,-212.13979701,0.00021216,2]
[312117194,1705643432660,-29.43841375,0.00021216,2]
[312117195,1705643432669,-156.06030227,0.00021216,2]
[312117196,1705643432679,-314.5036877,0.00021216,2]
[312117197,1705643432689,-607.13204194,0.00029387,2]
[312117198,1705643432699,-178.65716453,0.00029388,2]
[312117199,1705643432709,-230.71907883,0.00029389,2]
[312117200,1705643432719,-2813.43161407,0.00029389,2]
[312117201,1705643432728,-3963.07176261,0.0002939,2]
[312117202,1705643432737,-4959.16437663,0.0002939,2]
[312117203,1705643432747,-2966.15038142,0.00029393,7]
[312117204,1705643432756,-2132.99730345,0.00029394,2]
[312117205,1705643432765,-3146.31018175,0.00029983,2]
[312117206,1705643432774,-595.81818667,0.00029984,2]
[312117207,1705643432786,-154.95349847,0.00029984,2]
[312117208,1705643432797,-4119.92,0.00029985,3]
[312117209,1705643432806,-231.0269419,0.00029994,2]
[312117210,1705643432815,-295.48284636,0.00029994,2]
[312117211,1705643432826,-267.45462191,0.00029994,2]
[312117212,1705643432836,-265.226858,0.00029994,2]
[312117213,1705643432846,-1830.24193625,0.00029994,2]
[312117214,1705643432856,-554.91533247,0.00029994,2]
[312117215,1705643432866,-5003.17403652,0.00029994,2]
[312117216,1705643432876,-629.58587362,0.00029994,2]
[312117217,1705643432886,-30831.55512291,0.00029995,7]
[312117218,1705643432898,-1696.35035059,0.00029995,7]
[312117256,1705643440988,-2088.71588189,0.00021216,2]
[312117257,1705643440998,-3837.22483801,0.00021216,2]
[312117258,1705643441007,-6089.87509317,0.00029995,7]
[312117259,1705643441069,-38913.79904205,0.00029995,7]
[312117260,1705643441078,-156.01262907,0.00029995,2]
[312117261,1705643441087,-305.51246618,0.00029995,2]
[312117262,1705643441096,-261.40839953,0.00029995,2]
[312117263,1705643441105,-155.0,0.00029998,2]
[312117264,1705643441114,-1241.4576912,0.00029999,2]
[312117265,1705643441123,-682.3767278,0.0003,3]
[312117266,1705643441132,-200.44012435,0.0003,4]
[312117267,1705643441141,-283.01176432,0.0003,3]
[312117268,1705643441150,-1157.31354923,0.0003,2]
[312117269,1705643441158,-464.33375401,0.0003,2]
[312117270,1705643441167,-688.01285151,0.0003,4]
[312117271,1705643441176,-201.10292525,0.0003,4]
[312117272,1705643441185,-153.0,0.0003,2]
[312117273,1705643441195,-153.0,0.0003,2]
[312117274,1705643441204,-153.0,0.0003,2]
[312117275,1705643441214,-153.0,0.0003,2]
[312117276,1705643441222,-199.0432224,0.0003,2]
[312117277,1705643441231,-153.0,0.0003,2]
[312117278,1705643441240,-153.0,0.0003,2]
[312117279,1705643441249,-153.0,0.0003,2]
[312117280,1705643441259,-153.0,0.0003,2]
[312117281,1705643441268,-153.0,0.0003,2]
[312117282,1705643441277,-153.0,0.0003,2]
[312117283,1705643441286,-199.0432224,0.0003,2]
[312117284,1705643441295,-153.0,0.0003,2]
[312117285,1705643441304,-153.0,0.0003,2]
[312117286,1705643441314,-153.0,0.0003,2]
[312117287,1705643441322,-153.0,0.0003,2]
[312117288,1705643441331,-199.0432224,0.0003,2]
[312117289,1705643441340,-153.0,0.0003,2]
[312117290,1705643441349,-155.0,0.0003,2]
[312117291,1705643441359,-153.0,0.0003,2]
[312117292,1705643441368,-153.0,0.0003,2]
[312117293,1705643441377,-199.0432224,0.0003,2]
[312117294,1705643441386,-153.0,0.0003,2]
[312117295,1705643441395,-153.0,0.0003,2]
[312117296,1705643441404,-153.0,0.0003,2]
[312117297,1705643441413,-153.0,0.0003,2]
[312117298,1705643441422,-153.0,0.0003,2]
[312117299,1705643441432,-153.0,0.0003,2]
[312117300,1705643441442,-153.0,0.0003,2]
[312117301,1705643441451,-153.0,0.0003,2]
[312117302,1705643441460,-199.0432224,0.0003,2]
[312117303,1705643441469,-153.0,0.0003,2]
[312117304,1705643441478,-153.0,0.0003,2]
[312117305,1705643441488,-153.0,0.0003,2]
[312117306,1705643441497,-153.0,0.0003,2]
[312117307,1705643441506,-153.0,0.0003,2]
[312117308,1705643441515,-199.0432224,0.0003,2]
[312117309,1705643441524,-153.0,0.0003,2]
[312117310,1705643441534,-500.0,0.00030136,2]
[312117311,1705643441542,-500.0,0.00030136,2]
[312117312,1705643441552,-201.08346983,0.00030136,2]
[312117313,1705643441560,-643.2327074,0.00030136,2]
[312117314,1705643441570,-391.31918098,0.00030136,2]
[312117315,1705643441579,-166.327983,0.00030137,2]
[312117316,1705643441588,-201.485613,0.00030137,2]
[312117317,1705643441598,-41830.3727877,0.00030137,2]
[312117318,1705643441607,-153.0,0.000303,2]
[312117319,1705643441616,-153.0,0.000303,2]
[312117320,1705643441627,-153.0,0.000303,2]
[312117321,1705643441636,-153.0,0.000303,2]
[312117322,1705643441645,-153.0,0.000303,2]
[312117323,1705643441655,-153.0,0.000303,2]
[312117324,1705643441665,-153.0,0.000303,2]
[312117325,1705643441674,-157.1252217,0.000303,2]
[312117326,1705643441683,-153.0,0.000303,2]
[312117327,1705643441692,-153.0,0.000303,2]
[312117328,1705643441702,-153.0,0.000303,2]
[312117329,1705643441712,-153.0,0.000303,2]
[312117330,1705643441721,-153.0,0.000303,2]
[312117331,1705643441731,-153.0,0.000303,2]
[312117332,1705643441740,-153.0,0.000303,2]
[312117333,1705643441750,-153.0,0.000303,2]
[312117334,1705643441759,-153.0,0.000303,2]
[312117335,1705643441768,-153.0,0.000303,2]
[312117336,1705643441777,-153.0,0.000303,2]
[312117337,1705643441788,-153.0,0.000303,2]
[312117338,1705643441797,-153.0,0.000303,2]
[312117339,1705643441807,-153.0,0.000303,2]
[312117340,1705643441816,-153.0,0.000303,2]
[312117341,1705643441827,-153.0,0.000303,2]
[312117342,1705643441836,-153.0,0.000303,2]
[312117343,1705643441846,-153.0,0.000303,2]
[312117344,1705643441855,-306.0,0.000303,2]
[312117345,1705643441868,-308.9654129,0.000303,2]
[312117346,1705643441878,-167.117432,0.00030848,2]
[312117347,1705643441887,-201.485613,0.00030959,2]
[312117348,1705643441897,-1045.45812768,0.00030965,4]
[312117349,1705643441906,-968.0,0.0003097,30]
[312117350,1705643441915,-150.5,0.0003097,30]
[312117351,1705643441925,-968.0,0.0003098,30]
[312117352,1705643441934,-150.5,0.0003098,30]
[312117353,1705643441943,-968.0,0.0003099,30]
[312117354,1705643441952,-150.5,0.0003099,30]
[312117355,1705643441962,-154.93802479,0.00030997,4]
[312117356,1705643441971,-234.73206761,0.00030998,3]
[312117357,1705643441980,-154.95351395,0.00030998,4]
[312117358,1705643441989,-368.87856589,0.00030998,6]
[312117359,1705643441999,-646.0547508,0.00030998,4]
[312117360,1705643442008,-154.9690062,0.00030998,4]
[312117361,1705643442017,-8243.78409377,0.00030998,4]
[312117362,1705643442027,-1860.34370308,0.00030999,4]
[312117363,1705643442036,-2097.09872558,0.00031,4]
[312117364,1705643442175,-106132.72392108,0.00031,4]
[312117365,1705643442185,-6582.74961314,0.00031,5]
[312117366,1705643442194,-238.04250494,0.00031,2]
[312117367,1705643442204,-166.327983,0.00031183,2]
[312117368,1705643442213,-201.485613,0.00031781,2]
[312117369,1705643442223,-190.21637848,0.00032,4]
[312117370,1705643442232,-154.07708982,0.00032156,7]
[312117371,1705643442241,-166.327983,0.00032229,2]
[312117372,1705643442250,-154.07708982,0.00032334,7]
[312117373,1705643442259,-1273.60431467,0.00032458,2]
[312117374,1705643442269,-101657.23027676,0.000325,20]
[312117375,1705643442277,-201.485613,0.00032603,2]
[312117376,1705643442286,-823.29131007,0.00032668,2]
[312117377,1705643442295,-297.31855693,0.00032696,2]
[312117378,1705643442304,-154.07708982,0.00032761,7]
[312117379,1705643442313,-500.0,0.00032876,2]
[312117380,1705643442322,-500.0,0.00032876,2]
[312117381,1705643442406,-500.77772675,0.00032876,2]
[312117382,1705643442417,-500.0,0.00032876,2]
[312117383,1705643442426,-150.0,0.00032876,2]
[312117384,1705643442435,-500.0,0.00032876,2]
[312117385,1705643442444,-501.36615575,0.00032876,2]
[312117386,1705643442453,-501.46244598,0.00032876,2]
[312117387,1705643442463,-500.0,0.00032876,2]
[312117388,1705643442472,-174.79054583,0.00032876,2]
[312117389,1705643442482,-500.0,0.00032876,2]
[312117390,1705643442491,-500.0,0.00032876,2]
[312117391,1705643442501,-500.0,0.00032876,2]
[312117392,1705643442510,-500.0,0.00032876,2]
[312117393,1705643442519,-500.0,0.00032876,2]
[312117394,1705643442528,-500.0,0.00032876,2]
[312117395,1705643442538,-500.0,0.00032876,2]
[312117396,1705643442547,-500.0,0.00032876,2]
[312117397,1705643442557,-500.0,0.00032876,2]
[312117398,1705643442566,-500.0,0.00032876,2]
[312117399,1705643442576,-500.0,0.00032876,2]
[312117400,1705643442585,-500.0,0.00032876,2]
[312117401,1705643442594,-500.0,0.00032876,2]
[312117402,1705643442603,-500.0,0.00032876,2]
[312117403,1705643442612,-500.0,0.00032876,2]
[312117404,1705643442621,-500.0,0.00032876,2]
[312117405,1705643442631,-500.0,0.00032876,2]
[312117406,1705643442640,-500.0,0.00032876,2]
[312117407,1705643442649,-500.0,0.00032876,2]
[312117408,1705643442659,-500.0,0.00032876,2]
[312117409,1705643442668,-500.0,0.00032876,2]
[312117410,1705643442678,-500.0,0.00032876,2]
[312117411,1705643442688,-500.0,0.00032876,2]
[312117412,1705643442697,-500.0,0.00032876,2]
[312117413,1705643442707,-500.36215985,0.00032876,2]
[312117414,1705643442716,-500.0,0.00032876,2]
[312117415,1705643442725,-500.0,0.00032876,2]
[312117416,1705643442734,-649.30408372,0.00032876,2]
[312117417,1705643442745,-500.0,0.00032876,2]
[312117418,1705643442755,-500.0,0.00032876,2]
[312117419,1705643442765,-500.0,0.00032876,2]
[312117420,1705643442776,-500.0,0.00032876,2]
[312117421,1705643442788,-786.89,0.00032876,2]
[312117422,1705643442798,-500.0,0.00032876,2]
[312117423,1705643442810,-500.0,0.00032876,2]
[312117424,1705643442819,-584.75,0.00032876,2]
[312117425,1705643442829,-500.0,0.00032876,2]
[312117426,1705643442838,-500.0,0.00032876,2]
[312117427,1705643442848,-500.0,0.00032876,2]
[312117428,1705643442857,-500.0,0.00032876,2]
[312117430,1705643442867,-500.0,0.00032876,2]
[312117431,1705643442877,-984.41,0.00032876,2]
[312117432,1705643442886,-500.0,0.00032876,2]
[312117433,1705643442896,-500.0,0.00032876,2]
[312117434,1705643442905,-500.0,0.00032876,2]
[312117435,1705643442914,-500.0,0.00032876,2]
[312117436,1705643442924,-500.0,0.00032876,2]
[312117437,1705643442933,-500.0,0.00032876,2]
[312117438,1705643442942,-500.0,0.00032876,2]
[312117439,1705643442951,-500.0,0.00032876,2]
[312117440,1705643442961,-755.3,0.00032876,2]
[312117441,1705643442971,-500.0,0.00032876,2]
[312117442,1705643442980,-1770.85,0.00032876,2]
[312117443,1705643442990,-500.0,0.00032876,2]
[312117444,1705643442999,-500.0,0.00032876,2]
[312117445,1705643443009,-7973.31,0.00032876,2]
[312117446,1705643443019,-500.0,0.00032876,2]
[312117447,1705643443028,-500.0,0.00032876,2]
[312117448,1705643443037,-500.0,0.00032876,2]
[312117449,1705643443047,-500.0,0.00032876,2]
[312117450,1705643443056,-500.0,0.00032876,2]
[312117451,1705643443066,-500.0,0.00032876,2]
[312117452,1705643443075,-913.75,0.00032876,2]
[312117453,1705643443084,-719.14,0.00032876,2]
[312117454,1705643443094,-500.0,0.00032876,2]
[312117455,1705643443103,-500.0,0.00032876,2]
[312117456,1705643443112,-500.0,0.00032876,2]
[312117457,1705643443121,-500.0,0.00032876,2]
[312117458,1705643443130,-500.0,0.00032876,2]
[312117459,1705643443139,-4963.6,0.00032876,2]
[312117460,1705643443149,-500.0,0.00032876,2]
[312117461,1705643443158,-1597.3,0.00032876,2]
[312117462,1705643443168,-500.0,0.00032876,2]
[312117463,1705643443177,-2354.23,0.00032876,2]
[312117464,1705643443186,-500.0,0.00032876,2]
[312117465,1705643443195,-502.52259214,0.00032876,2]
[312117466,1705643443204,-500.0,0.00032876,2]
[312117467,1705643443214,-500.0,0.00032876,2]
[312117468,1705643443223,-500.0,0.00032876,2]
[312117469,1705643443232,-500.0,0.00032876,2]
[312117471,1705643443241,-500.0,0.00032876,2]
[312117473,1705643443251,-500.0,0.00032876,2]
[312117474,1705643443259,-500.0,0.00032876,2]
[312117475,1705643443268,-500.0,0.00032876,2]
[312117476,1705643443277,-1661.89,0.00032876,2]
[312117477,1705643443286,-500.0,0.00032876,2]
[312117478,1705643443295,-500.0,0.00032876,2]
[312117479,1705643443305,-1775.53,0.00032876,2]
[312117480,1705643443315,-504.07827703,0.00032876,2]
[312117481,1705643443324,-500.0,0.00032876,2]
[312117482,1705643443333,-572.41,0.00032876,2]
[312117483,1705643443342,-500.0,0.00032876,2]
[312117484,1705643443352,-500.0,0.00032876,2]
[312117485,1705643443361,-500.0,0.00032876,2]
[312117486,1705643443371,-500.0,0.00032876,2]
[312117487,1705643443380,-500.0,0.00032876,2]
[312117488,1705643443389,-500.0,0.00032876,2]
[312117490,1705643443398,-500.0,0.00032876,2]
[312117491,1705643443407,-294.2266857,0.00032876,2]
[312117492,1705643443417,-500.0,0.00032876,2]
[312117493,1705643443428,-787.39,0.00032876,2]
[312117494,1705643443437,-154.07708982,0.0003297,7]
[312117495,1705643443446,-200.0,0.00032993,15]
[312117496,1705643443457,-6762.26543772,0.00033,4]
[312117497,1705643443467,-155.0,0.00033,2]
[312117498,1705643443476,-244.65292422,0.00033148,4]
[312117499,1705643443487,-482.16225285,0.0003315,3]
[312117500,1705643443498,-500.0,0.0003315,3]
[312117501,1705643443508,-326.66,0.0003315,3]
[312117502,1705643443518,-500.0,0.0003315,3]
[312117503,1705643443528,-359.15,0.0003315,3]
[312117504,1705643443537,-500.0,0.0003315,3]
[312117505,1705643443547,-500.0,0.0003315,3]
[312117506,1705643443556,-786.89,0.0003315,3]
[312117507,1705643443565,-500.0,0.0003315,3]
[312117508,1705643443574,-500.0,0.0003315,3]
[312117509,1705643443583,-584.75,0.0003315,3]
[312117510,1705643443592,-500.0,0.0003315,3]
[312117511,1705643443602,-500.0,0.0003315,3]
[312117512,1705643443611,-500.0,0.0003315,3]
[312117513,1705643443619,-984.41,0.0003315,3]
[312117514,1705643443628,-246.33,0.0003315,3]
[312117515,1705643443638,-755.3,0.0003315,3]
[312117516,1705643443647,-1770.85,0.0003315,3]
[312117517,1705643443656,-500.0,0.0003315,3]
[312117518,1705643443665,-7973.31,0.0003315,3]
[312117519,1705643443674,-500.0,0.0003315,3]
[312117520,1705643443683,-913.75,0.0003315,3]
[312117521,1705643443692,-719.14,0.0003315,3]
[312117522,1705643443702,-500.0,0.0003315,3]
[312117523,1705643443711,-4963.6,0.0003315,3]
[312117524,1705643443720,-500.0,0.0003315,3]
[312117525,1705643443729,-1597.3,0.0003315,3]
[312117526,1705643443738,-500.0,0.0003315,3]
[312117527,1705643443747,-2354.23,0.0003315,3]
[312117528,1705643443757,-500.0,0.0003315,3]
[312117529,1705643443766,-500.0,0.0003315,3]
[312117530,1705643443775,-500.0,0.0003315,3]
[312117531,1705643443787,-500.0,0.0003315,3]
[312117532,1705643443798,-500.0,0.0003315,3]
[312117533,1705643443808,-500.0,0.0003315,3]
[312117534,1705643443817,-1661.89,0.0003315,3]
[312117535,1705643443827,-340.11,0.0003315,3]
[312117536,1705643443836,-1775.53,0.0003315,3]
[312117537,1705643443845,-572.41,0.0003315,3]
[312117538,1705643443854,-500.0,0.0003315,3]
[312117539,1705643443864,-500.0,0.0003315,3]
[312117540,1705643443874,-485.51076799,0.0003315,3]
[312117541,1705643443884,-500.0,0.0003315,3]
[312117542,1705643443894,-787.39,0.0003315,3]
[312117543,1705643443903,-166.10882689,0.00033161,4]
[312117544,1705643443913,-215.784,0.00033211,2]